Cogmind - Beta 13 @@@ ROGUE MODE // 2024.04.23 @ 20:49:46 Player: Pogmind Result: Self-destructed Performance ------------- Evolutions (9) 4500 Regions Visited (16) 3200 Robots Destroyed (95) 475 Value Destroyed (3153) 3153 Prototype IDs (33) 660 Alien Tech Used (0) 0 Bonus (1368) 1368 TOTAL SCORE: 13356 Bonus ------- High Alert Combat Kills 35 Follower Combat Kills 33 Entered DSFs 1000 Aligned with FarCom 300 Cogmind --------- Core Integrity 996/1600 Matter 18/300 Energy 32/100 System Corruption 4% Temperature Cool (0) Movement Core (50) Location -1/Access Parts ------- > --- POWER (3) -------- (None) > --- PROPULSION (6) --- (None) > --- UTILITY (11) ----- (None) > --- WEAPON (5) ------- (None) > --- INVENTORY (5) ---- Advanced Thermal Shield Advanced Component Analysis Suite Enhanced Quantum Rifle Peak State ------------ > --- POWER ------------ Light Nuclear Core Micro Antimatter Reactor Light Quantum Reactor > --- PROPULSION ------- Electron Diverter Electron Diverter Electron Diverter Electron Diverter Impulse Thruster Array > --- UTILITY ---------- Improved Melee Analysis Suite Advanced Melee Analysis Suite Advanced Melee Analysis Suite Core Analyzer Experimental Core Analyzer Transmission Jammer ECM Suite Reaction Control System Improved Weapon Shielding Graphene Brace Advanced Thermal Shield > --- WEAPON ----------- Enhanced Quantum Rifle Heavy Flail Impact Mace > --- INVENTORY -------- Improved Deuterium Engine Graphene Brace Thermal Shield Fusion Bomb Launcher [Rating: 144] Favorites ----------- Power Light Nuclear Core Engine Ion Engine Power Core Light Nuclear Core Reactor Micro Antimatter Reactor Propulsion Advanced Treads Treads Advanced Treads Leg Carbon-fiber Leg Wheel Wheel Hover Unit Aerolev Unit Flight Unit Electron Diverter Utility Lightpack 2.0 Device Transmission Jammer Storage Lightpack 2.0 Processor Advanced Melee Analysis Suite Hackware Hacking Suite Protection Layered Light Armor Plating Weapon Impact Mace Energy Gun Small Laser Energy Cannon Particle Cannon Ballistic Gun Assault Rifle Ballistic Cannon Light Cannon Launcher Rocket Array Special Weapon Remote Datajack Impact Weapon Impact Mace Slashing Weapon Greatsword Special Melee Weapon Advanced Datajack Build | -11 -10 -10 -9 -9 -9 -8 -8 -7 -6 -6 -5 -4 -3 -2 -2 -1 ------- Run | Yrd Mat Min Mat Min Exi Min Mat Fac Fac DSF Fac Fac Res Res DSF Acc Slots Evolved 18 | . . . 2 . . . 2 2 2 . 2 2 2 2 . 2 Power 2 | . . . . . . . . . . . 1 . . . . 1 Propulsion 4 | . . . . . . . 1 . . . 1 . 1 1 . . Utility 9 | . . . 2 . . . 1 1 1 . . 2 . 1 . 1 Weapon 3 | . . . . . . . . 1 1 . . . 1 . . . Parts Attached 156 | 6 3 . 6 6 2 13 16 31 1 . 17 2 31 1 2 19 Power 18 | 1 . . 1 . . 2 2 4 . . 1 . 3 . . 4 Engine 8 | 1 . . 1 . . 1 1 2 . . 1 . 1 . . . Core 6 | . . . . . . 1 1 2 . . . . 2 . . . Reactor 4 | . . . . . . . . . . . . . . . . 4 Propulsion 41 | 2 . . 1 2 . 3 5 7 . . 5 . 13 1 . 2 Treads 8 | 2 . . 1 . . . . . . . 4 . 1 . . . Leg 8 | . . . . 2 . . 3 3 . . . . . . . . Wheel 9 | . . . . . . 3 2 3 . . 1 . . . . . Hover 1 | . . . . . . . . 1 . . . . . . . . Flight 15 | . . . . . . . . . . . . . 12 1 . 2 Utility 53 | 1 2 . 2 1 2 2 2 10 1 . 9 2 9 . . 10 Device 23 | . 1 . 1 . . 1 . 5 . . 2 . 7 . . 6 Storage 4 | 1 . . . . 1 . . 1 . . . . 1 . . . Processor 10 | . 1 . . . . 1 1 1 . . 3 1 . . . 2 Hackware 2 | . . . . . . . . . . . . 1 . . . 1 Protection 14 | . . . 1 1 1 . 1 3 1 . 4 . 1 . . 1 Artifact . | . . . . . . . . . . . . . . . . . Weapon 44 | 2 1 . 2 3 . 6 7 10 . . 2 . 6 . 2 3 Energy Gun 3 | 1 . . . . . . . 1 . . . . . . . 1 Energy Cannon 5 | . . . 1 1 . 1 1 . . . . . 1 . . . Ballistic Gun 2 | 1 . . . . . . 1 . . . . . . . . . Ballistic Cannon 10 | . 1 . 1 1 . 3 1 2 . . 1 . . . . . Launcher 9 | . . . . . . 1 . 2 . . . . 2 . 2 2 Special Weapon 2 | . . . . . . . 2 . . . . . . . . . Impact Weapon 10 | . . . . 1 . 1 2 3 . . 1 . 2 . . . Slashing Weapon 2 | . . . . . . . . 2 . . . . . . . . Piercing Weapon . | . . . . . . . . . . . . . . . . . Special Melee Weapon 1 | . . . . . . . . . . . . . 1 . . . Unidentified Prototypes 7 | . . . 1 . . . . 4 . . . . 1 . . 1 Parts Lost 39 | . . . . . . 7 3 8 . . . 1 2 . 7 11 Power 6 | . . . . . . 2 1 1 . . . . . . . 2 Propulsion 11 | . . . . . . 2 2 2 . . . . . . 1 4 Utility 15 | . . . . . . 1 . 2 . . . 1 2 . 4 5 Weapon 7 | . . . . . . 2 . 3 . . . . . . 2 . Highest Loss Streak 7 | . . . . . . 6 2 2 . . . 1 1 . 7 7 To Critical Strikes . | . . . . . . . . . . . . . . . . . Average Slot Usage (%) 81 | . 95 100 88 88 83 70 80 74 66 66 83 98 85 82 71 72 Engine 6 | . 14 14 11 11 11 10 6 3 . . 1 5 4 4 4 1 Core 2 | . . . . . . . 2 3 6 6 5 5 4 4 4 1 Treads 6 | . 28 28 22 11 . . . . . . 9 21 8 . . . Leg 6 | . . . . 10 22 6 6 13 . . . . . . . . Wheel 5 | . . . . . . 14 19 5 13 13 10 . . . . . Flight 2 | . . . . . . . . . . . . . 10 21 19 17 Device 7 | . 9 . 11 3 . 6 3 6 . . 3 10 14 17 12 15 Storage 7 | . 14 14 11 11 11 11 9 7 6 6 3 . . . . . Processor 6 | . . 14 . . . . 9 4 . . 3 15 14 13 13 16 Protection 9 | . . . 10 18 16 . 5 9 20 20 20 15 10 8 6 2 Energy Gun 1 | . 14 14 . . . . . . . . . . . . . 1 Energy Cannon 3 | . . . 8 9 11 2 2 3 . . . . 1 . . . Ballistic Cannon 7 | . 12 14 13 12 11 14 8 5 . . 4 5 1 . . . Launcher 1 | . . . . . . 3 . 3 6 6 1 . . . . 1 Impact Weapon 4 | . . . . . . 1 2 1 13 13 16 15 10 8 8 7 Naked Turns 10 | . . . . . . . . . . . . . . . . 10 Heaviest Build 135 | 13 15 14 32 32 31 27 25 44 39 39 56 51 135 37 37 48 Greatest Support 108 | 40 40 40 40 40 20 26 45 45 38 38 88 88 108 48 48 48 Greatest Overweight (x) 2 | 2 . . . 1 1 1 . 1 1 1 . . 1 . . 1 Average Overweight (x) . | . . . . . . . . . 1 1 . . . . . . Largest Inventory Capacity 40 | 8 8 8 8 8 40 40 40 40 40 40 40 5 25 5 5 5 Average Capacity 23 | 7 8 8 8 8 22 40 40 40 40 40 27 5 5 5 5 5 Most Carried 40 | 4 7 8 8 8 10 11 32 40 34 36 37 4 5 4 4 5 Average Carried 16 | 2 5 7 7 7 8 10 24 35 33 34 24 3 4 4 3 3 Final Capacity 40 | 8 8 8 8 8 40 40 40 40 40 40 5 5 5 5 5 5 Final Carried 36 | 4 7 8 8 8 9 10 31 32 34 36 5 4 5 4 3 3 Class Distribution -------------------- 29% | Hauler-Mutant 25% | Mutant 10% | Gladiator 10% | Hauler-Skirmisher 5% | Hauler-Gladiator 3% | Infiltrator-Gladiator 3% | Hauler-Tank 3% | Infiltrator-Ninja 3% | Infiltrator-Sprinter Dominant Class ---------------- Mutant | -10/Materials Mutant | -10/Mines Mutant | -9/Materials Mutant | -9/Mines Mutant | -9/Exiles Hauler-Mutant | -8/Mines Hauler-Mutant | -8/Materials Hauler-Mutant | -7/Factory Hauler-Mutant | -6/Factory Hauler-Mutant | -6/DSF Hauler-Mutant | -5/Factory Gladiator | -4/Factory Gladiator | -3/Research Gladiator | -2/Research Gladiator | -2/DSF Infiltrator-Sprinter | -1/Access Resources | -11 -10 -10 -9 -9 -9 -8 -8 -7 -6 -6 -5 -4 -3 -2 -2 -1 ----------- Run | Yrd Mat Min Mat Min Exi Min Mat Fac Fac DSF Fac Fac Res Res DSF Acc Matter Collected 2632 | 203 211 . 162 75 77 204 246 522 17 . 481 . 350 . 17 67 Remotely . | . . . . . . . . . . . . . . . . . Salvage Created 3079 | . 114 . 300 16 . 233 262 774 17 17 472 . 707 . 46 121 Parts 144 | . 10 . 17 1 . 12 13 50 . . 7 . 29 . 5 . Haulers Intercepted 6 | . . . 3 . . . 2 1 . . . . . . . . Recyclers Shooed 4 | . 2 . . . . . 1 . . . . . 1 . . . Parts Field Recycled . | . . . . . . . . . . . . . . . . . Retrieved Matter . | . . . . . . . . . . . . . . . . . Parts Self-Destructed . | . . . . . . . . . . . . . . . . . Prevented . | . . . . . . . . . . . . . . . . . Kills | -11 -10 -10 -9 -9 -9 -8 -8 -7 -6 -6 -5 -4 -3 -2 -2 -1 ------- Run | Yrd Mat Min Mat Min Exi Min Mat Fac Fac DSF Fac Fac Res Res DSF Acc Combat Hostiles Destroyed 55 | . 3 . 2 2 . 3 4 24 . . 2 . 13 . 2 . Melee 13 | . . . . . . 1 1 4 . . 2 . 4 . 1 . Guns 2 | . 1 . . . . . 1 . . . . . . . . . Cannons 13 | . 2 . 2 2 . 2 2 3 . . . . . . . . AOE 26 | . . . . . . . . 17 . . . . 8 . 1 . Classes Destroyed 15 | . 2 . 4 . . 2 . 4 . . 1 . . . 1 1 Worker 8 | . . . . . . 1 . 2 . . 3 . 1 . . 1 Builder 4 | . . . . . . 1 . 1 1 . . . 1 . . . Tunneler 2 | . . . . . . . . . . . 1 . . . . 1 Hauler 6 | . . . 3 . . . 2 1 . . . . . . . . Recycler 6 | . . . 1 . . 1 . . . . 2 . 2 . . . Operator 1 | . . . . . . . . . . . . . . . . 1 Watcher 13 | . 2 . 3 . . . 1 2 . . . . 3 . . 2 Swarmer 18 | . . . . . . . . 8 . . . . 10 . . . Cutter 2 | . . . . . . . . . . . . . . . 2 . Grunt 20 | . 3 . . 2 . 3 3 9 . . . . . . . . Brawler 1 | . . . . . . . . 1 . . . . . . . . Duelist 2 | . . . 1 . . . . 1 . . . . . . . . Sentry 3 | . . . 1 . . . 1 1 . . . . . . . . Hunter 1 | . . . . . . . . 1 . . . . . . . . Programmer 8 | . . . . . . . . 3 . . 2 . 3 . . . Best Kill Streak 9 | . 2 . 4 1 . 3 3 9 1 . 3 . 6 . 2 1 Combat Bots Only 9 | . 2 . 1 1 . 2 1 9 . . 2 . 5 . 2 . Max Kills in Single Turn 4 | . 1 . 1 1 . 1 1 4 1 . 1 . 4 . 1 1 Gunslinging . | . . . . . . . . . . . . . . . . . Exploded 4 | . . . . . . . . 3 . . . . 4 . 1 . Melee 1 | . . . . . . 1 1 1 . . 1 . 1 . 1 . Uniques/NPCs Destroyed . | . . . . . . . . . . . . . . . . . Combat | -11 -10 -10 -9 -9 -9 -8 -8 -7 -6 -6 -5 -4 -3 -2 -2 -1 -------- Run | Yrd Mat Min Mat Min Exi Min Mat Fac Fac DSF Fac Fac Res Res DSF Acc Hostile Shots Fired 541 | . 28 . 22 21 . 64 32 83 . 14 20 6 57 . 97 97 Missed 185 | . 8 . 6 5 . 11 3 20 . . . 2 23 . 57 50 Damage Taken 8564 | . 256 . 417 251 . 997 444 2168 . 340 407 97 795 . 1163 1229 Core 1805 | . 25 . 11 . . 135 15 377 . 157 44 . 92 . 345 604 Absorbed by Shields . | . . . . . . . . . . . . . . . . . Redirected to Shielding 245 | . . . . . . . . . . . . 16 28 . 98 103 Core Remaining (%) 84 | 100 . 90 . . . 63 97 46 . 81 95 100 92 . 76 . Volleys Fired 142 | . 22 . 21 10 . 15 42 24 . . . . 6 . 2 . Largest 3 | . 2 . 2 2 . 2 2 3 . . . . 1 . 1 . Hottest 182 | . 75 . 103 70 . 70 119 182 . . . . 52 . 52 . Shots Fired 236 | . 44 . 41 20 . 18 61 43 . . . . 6 . 3 . Gun 32 | . 22 . . . . . 9 1 . . . . . . . . Cannon 169 | . 22 . 41 20 . 14 41 31 . . . . . . . . Launcher 24 | . . . . . . 4 . 11 . . . . 6 . 3 . Special 11 | . . . . . . . 11 . . . . . . . . . Kinetic 130 | . 22 . 22 20 . 8 41 17 . . . . . . . . Thermal 71 | . 22 . 19 . . 6 9 15 . . . . . . . . Explosive 20 | . . . . . . . . 11 . . . . 6 . 3 . Electromagnetic 4 | . . . . . . 4 . . . . . . . . . . Robot Hit Streak 11 | . 6 . 9 10 . 6 11 5 . . . . . . . . Robot Miss Streak 6 | . 2 . 3 3 . 1 5 5 . . . . 3 . 6 . Penetration Max . | . . . . . . . . . . . . . . . . . Secondary Targets . | . . . . . . . . . . . . . . . . . Shots Hit Robots 226 | . 33 . 22 12 . 19 43 44 1 1 17 . 26 . 2 6 Core Hits 128 | . 9 . 10 3 . 10 11 59 . . 3 . 18 . 5 . Critical Kills 4 | . . . . . . . . . . . 1 . 3 . . . Critical Parts Destroyed 10 | . . . . . . 2 . . . . 1 . 5 . . 2 Critical Strikes 21 | . 3 . . 1 . 2 . 3 . . 2 . 8 . . 2 Blast 4 | . 3 . . 1 . . . . . . . . . . . . Smash 14 | . . . . . . 2 . . . . 2 . 8 . . 2 Sever 3 | . . . . . . . . 3 . . . . . . . . Melee Attacks 196 | . . . . 1 . 15 13 40 1 1 30 . 62 . 3 30 Impact 154 | . . . . 1 . 15 13 2 1 1 30 . 58 . 3 30 Slashing 38 | . . . . . . . . 38 . . . . . . . . Piercing . | . . . . . . . . . . . . . . . . . Sneak Attacks 20 | . . . . . . . . 2 1 . 6 . 8 . . 3 Combat Hostiles . | . . . . . . . . . . . . . . . . . Follow-up Attacks 10 | . . . . . . . . 1 . . 2 . 5 . 1 1 Damage Inflicted 10571 | . 501 . 518 223 . 587 754 3039 104 51 1074 . 2734 . 446 540 Guns 296 | . 183 . . . . . 97 16 . . . . . . . . Cannons 2003 | . 318 . 445 214 . 175 488 363 . . . . . . . . Explosions 3383 | . . . 73 . . 189 . 1428 . . . . 1345 . 348 . Melee 4871 | . . . . . . 218 165 1232 104 51 1074 . 1389 . 98 540 Ramming 18 | . . . . 9 . 5 4 . . . . . . . . . Kinetic 1610 | . 318 . 241 214 . 113 535 189 . . . . . . . . Thermal 762 | . 183 . 277 . . 62 50 190 . . . . . . . . Explosive 3121 | . . . . . . . . 1428 . . . . 1345 . 348 . Electromagnetic 189 | . . . . . . 189 . . . . . . . . . . Impact 3639 | . . . . . . 218 165 . 104 51 1074 . 1389 . 98 540 Slashing 1232 | . . . . . . . . 1232 . . . . . . . . Piercing . | . . . . . . . . . . . . . . . . . Highest Corruption 20 | . . . . . . . . 20 . . 5 . 6 . 3 4 Average Corruption 5 | . . . . . . . . 5 . . 4 . 5 . 2 2 Corruption Purged . | . . . . . . . . . . . . . . . . . Corruption Blocked . | . . . . . . . . . . . . . . . . . Effects 79 | . . . . . . . . 44 . . 9 . 24 . 1 1 Message Errors 12 | . . . . . . . . 6 . . 3 . 2 . . 1 Matter Fused 23 | . . . . . . . . 12 . . 2 . 9 . . . Heat Flow Errors 9 | . . . . . . . . 6 . . . . 3 . . . Energy Discharges 10 | . . . . . . . . 4 . . 2 . 4 . . . Parts Rejected 3 | . . . . . . . . 2 . . 1 . . . . . Data Loss (minor) 12 | . . . . . . . . 9 . . 1 . 2 . . . Data Loss (major) 6 | . . . . . . . . 3 . . . . 3 . . . Misfires 1 | . . . . . . . . . . . . . . . 1 . Alerts 2 | . . . . . . . . 1 . . . . 1 . . . Misdirections 1 | . . . . . . . . 1 . . . . . . . . Overload Shots . | . . . . . . . . . . . . . . . . . Overflow Damage 2050 | . . . 33 17 . 62 12 226 64 . 417 . 791 . 29 399 Projectiles 76 | . . . . 17 . 18 12 17 . . . . 12 . . . Explosions 113 | . . . 33 . . . . . . . . . 80 . . . Melee 1861 | . . . . . . 44 . 209 64 . 417 . 699 . 29 399 Knockbacks 46 | . 8 . . 5 . 6 2 3 1 1 6 . 12 . . 2 Impact 23 | . . . . . . 4 1 . 1 1 6 . 8 . . 2 Kinetic 18 | . 8 . . 5 . 1 1 3 . . . . . . . . Secondary 5 | . . . . . . 1 . . . . . . 4 . . . Self-Inflicted Damage 288 | . . . 61 . . 2 . 187 . . . . 38 . . . Shots 12 | . . . 1 . . . . 9 . . . . 2 . . . Rammed 1 | . . . . . . 1 . . . . . . . . . . Targets Rammed 5 | . . . . 2 . 1 2 . . . . . . . . . Kicked 4 | . . . . 2 . . 2 . . . . . . . . . Crushed . | . . . . . . . . . . . . . . . . . Highest Temperature 355 | . 186 . 222 206 . 146 141 355 . . . 5 276 1 . 236 Average Temperature 73 | . 68 . 79 123 . 53 44 109 . . . 5 43 1 . 59 Received Heat Transfer 1353 | . 147 . 54 147 . 531 234 171 . . . 45 . . . 24 Effects 3 | . . . 2 . . . . . . . . . . . . 1 Energy Bleed 1 | . . . . . . . . . . . . . . . . 1 Interference 2 | . . . 2 . . . . . . . . . . . . . Siege Activations . | . . . . . . . . . . . . . . . . . Robots Corrupted . | . . . . . . . . . . . . . . . . . Combat Hostiles . | . . . . . . . . . . . . . . . . . Parts Fried 21 | . . . . . . 1 . . 2 . 7 . 7 . . 4 Impact Corruptions 60 | . . . . . . 2 . . 3 . 16 . 24 . 1 14 Robots Melted . | . . . . . . . . . . . . . . . . . Combat Hostiles . | . . . . . . . . . . . . . . . . . Parts Melted 1 | . . . 1 . . . . . . . . . . . . . Heat Transferred 1264 | . 400 . 420 . . 111 74 259 . . . . . . . . Parts Sabotaged . | . . . . . . . . . . . . . . . . . Parts Stolen . | . . . . . . . . . . . . . . . . . Parts Stripped . | . . . . . . . . . . . . . . . . . Power Chain Reactions . | . . . . . . . . . . . . . . . . . Alert | -11 -10 -10 -9 -9 -9 -8 -8 -7 -6 -6 -5 -4 -3 -2 -2 -1 ------- Run | Yrd Mat Min Mat Min Exi Min Mat Fac Fac DSF Fac Fac Res Res DSF Acc Peak Influence 477 | . 189 5 84 51 . 161 107 477 207 178 179 22 338 189 262 246 Initial 202 | . . 5 1 25 . . 17 14 202 148 93 7 6 189 141 151 Average 77 | . 51 5 28 6 . 50 38 116 203 151 66 9 111 189 188 175 Maximum Alert Level 2 | . . . . . . . . 2 1 . . . 1 . 1 1 Low Security (%) 91 | 100 100 100 100 100 . 100 100 92 . 100 100 100 83 100 63 43 Level 1 7 | . . . . . . . . 1 100 . . . 16 . 36 56 Level 2 1 | . . . . . . . . 6 . . . . . . . . Level 3 . | . . . . . . . . . . . . . . . . . Level 4 . | . . . . . . . . . . . . . . . . . Level 5 . | . . . . . . . . . . . . . . . . . High Security . | . . . . . . . . . . . . . . . . . Max Security . | . . . . . . . . . . . . . . . . . Squads Dispatched 18 | . . . . . . . 4 6 . 1 2 . 2 . 1 2 Investigation 3 | . . . . . . . 2 . . . . . . . . 1 Extermination 6 | . . . . . . . . 2 . . 1 . 2 . . 1 Reinforcement 9 | . . . . . . . 2 4 . 1 1 . . . 1 . Assault . | . . . . . . . . . . . . . . . . . Garrison . | . . . . . . . . . . . . . . . . . Intercept . | . . . . . . . . . . . . . . . . . Searches Triggered . | . . . . . . . . . . . . . . . . . Construction Impeded 1 | . . . . . . . 1 . . . . . . . . . Haulers Reinforced 2 | . . . . . . . . 2 . . . . . . . . Active Scanning Responses . | . . . . . . . . . . . . . . . . . Cargo Convoy Interrupts . | . . . . . . . . . . . . . . . . . Stealth | -11 -10 -10 -9 -9 -9 -8 -8 -7 -6 -6 -5 -4 -3 -2 -2 -1 --------- Run | Yrd Mat Min Mat Min Exi Min Mat Fac Fac DSF Fac Fac Res Res DSF Acc Distress Signals 7 | . 1 . 2 . . . . 2 . . . . 1 . . 1 Communications Jammed 8 | . . . . . . . . . . . . . 8 . . . Distress Signals 8 | . . . . . . . . . . . . . 8 . . . Times Spotted 156 | . 10 . 13 5 . 14 7 33 . 4 4 2 25 . 6 33 Peak Tracking Total 13 | . 3 . 8 3 . 3 3 6 . 3 2 2 5 . 6 13 Tactical Retreats 20 | . 3 . . . . 4 . 3 . 1 . . 5 . . 4 Traps | -11 -10 -10 -9 -9 -9 -8 -8 -7 -6 -6 -5 -4 -3 -2 -2 -1 ------- Run | Yrd Mat Min Mat Min Exi Min Mat Fac Fac DSF Fac Fac Res Res DSF Acc Traps Triggered 6 | . . . . . . . 1 3 . . . . 1 . . 1 Indirectly . | . . . . . . . . . . . . . . . . . Trap Hack Attempts . | . . . . . . . . . . . . . . . . . Triggered . | . . . . . . . . . . . . . . . . . Disarmed . | . . . . . . . . . . . . . . . . . Reprogrammed . | . . . . . . . . . . . . . . . . . Reused 1 | . . . . . . . 1 . . . . . . . . . Traps Extracted . | . . . . . . . . . . . . . . . . . Installed 1 | . . . . . . . 1 . . . . . . . . . Triggered 2 | . . . . . . . 1 . . . . . . . . 1 Most Traps Carried 1 | . . . . 1 1 1 1 . . . . . . . . . Machines | -11 -10 -10 -9 -9 -9 -8 -8 -7 -6 -6 -5 -4 -3 -2 -2 -1 ---------- Run | Yrd Mat Min Mat Min Exi Min Mat Fac Fac DSF Fac Fac Res Res DSF Acc Machines Disabled 8 | . . . 1 . . 1 1 2 . 1 . . 1 . 1 . Max in Single Turn 1 | . . . 1 . . 1 1 1 . 1 . . 1 . 1 . Garrison Access 1 | . . . . . . . 1 . . . . . . . . . Energy Cycler 1 | . . . . . . . . . . . . . . . . 1 Machines Repaired . | . . . . . . . . . . . . . . . . . Machines Dismantled . | . . . . . . . . . . . . . . . . . Machines Sabotaged . | . . . . . . . . . . . . . . . . . Overloaded Fab Kills . | . . . . . . . . . . . . . . . . . Hacking | -11 -10 -10 -9 -9 -9 -8 -8 -7 -6 -6 -5 -4 -3 -2 -2 -1 --------- Run | Yrd Mat Min Mat Min Exi Min Mat Fac Fac DSF Fac Fac Res Res DSF Acc Machines Accessed 30 | . 2 1 1 . 3 . 4 6 1 . 3 1 4 1 . 3 Terminals 22 | . 2 . 1 . . . 3 4 1 . 2 1 4 1 . 3 Fabricators . | . . . . . . . . . . . . . . . . . Repair Stations 1 | . . . . . . . . 1 . . . . . . . . Recycling Units . | . . . . . . . . . . . . . . . . . Scanalyzers 2 | . . . . . . . . 1 . . 1 . . . . . Garrison Access 1 | . . . . . . . 1 . . . . . . . . . Total Hacks 64 | . 7 1 3 . 3 . 11 11 2 . 10 1 8 1 . 6 Successful 25 | . 3 1 1 . 3 . 5 3 1 . 4 . 1 1 . 2 Failed 38 | . 4 . 2 . . . 5 8 1 . 6 1 7 . . 4 Catastrophic 10 | . 1 . 1 . . . 2 2 . . 2 1 . . . 1 Database Lockouts 1 | . . . . . . . 1 . . . . . . . . . Manual 35 | . 6 . 2 . 1 . 7 7 . . 4 1 4 . . 3 Terminals 51 | . 7 . 3 . . . 9 7 2 . 7 1 8 1 . 6 Fabricators . | . . . . . . . . . . . . . . . . . Repair Stations 1 | . . . . . . . . 1 . . . . . . . . Recycling Units . | . . . . . . . . . . . . . . . . . Scanalyzers 6 | . . . . . . . . 3 . . 3 . . . . . Garrison Access 2 | . . . . . . . 2 . . . . . . . . . Terminal Hacks 19 | . 3 1 1 . 3 . 4 . 1 . 2 . 1 1 . 2 Record 6 | . . . . . 2 . 1 . . . 2 . . . . 1 Robot Analysis 1 | . 1 . . . . . . . . . . . . . . . Prototype ID Bank 1 | . . . . . . . 1 . . . . . . . . . Open Door 1 | . . 1 . . . . . . . . . . . . . . Open DSF 3 | . . . . . . . . . 1 . . . 1 1 . . Level Access Points 1 | . . . . . . . 1 . . . . . . . . . Branch Access Points 2 | . 1 . . . . . . . . . . . . . . 1 Locate Traps 1 | . 1 . . . . . . . . . . . . . . . Hauler Manifests 2 | . . . 1 . . . 1 . . . . . . . . . Derelict Proto ID Bank 1 | . . . . . 1 . . . . . . . . . . . Fabricator Hacks . | . . . . . . . . . . . . . . . . . Repair Station Hacks 1 | . . . . . . . . 1 . . . . . . . . Scan Component 1 | . . . . . . . . 1 . . . . . . . . Recycling Unit Hacks . | . . . . . . . . . . . . . . . . . Scanalyzer 4 | . . . . . . . . 2 . . 2 . . . . . Insert Component 2 | . . . . . . . . 1 . . 1 . . . . . Analyze 2 | . . . . . . . . 1 . . 1 . . . . . Garrison Access Hacks 1 | . . . . . . . 1 . . . . . . . . . Seal Access 1 | . . . . . . . 1 . . . . . . . . . Unauthorized Hacks . | . . . . . . . . . . . . . . . . . Terminals . | . . . . . . . . . . . . . . . . . Fabricators . | . . . . . . . . . . . . . . . . . Repair Stations . | . . . . . . . . . . . . . . . . . Recycling Units . | . . . . . . . . . . . . . . . . . Scanalyzers . | . . . . . . . . . . . . . . . . . Garrison Access . | . . . . . . . . . . . . . . . . . Data Cores Recovered 1 | . . . . . . . . . . . . . . . . 1 Used 1 | . . . . . . . . . . . . . . . . 1 Hacking Detections 20 | . 2 . 1 . . . 3 4 . . 3 1 3 . . 3 Full Trace Events 2 | . . . . . . . 1 . . . . . . . . 1 Feedback Events . | . . . . . . . . . . . . . . . . . Feedback Blocked . | . . . . . . . . . . . . . . . . . Robot Schematics Acquired . | . . . . . . . . . . . . . . . . . Robots Built . | . . . . . . . . . . . . . . . . . Authchips . | . . . . . . . . . . . . . . . . . Time . | . . . . . . . . . . . . . . . . . Total Robot Build Rating . | . . . . . . . . . . . . . . . . . Part Schematics Acquired 2 | . . . . . . . . 1 . . 1 . . . . . Parts Built . | . . . . . . . . . . . . . . . . . Authchips . | . . . . . . . . . . . . . . . . . Time . | . . . . . . . . . . . . . . . . . Total Part Build Rating . | . . . . . . . . . . . . . . . . . Parts Repaired . | . . . . . . . . . . . . . . . . . Time . | . . . . . . . . . . . . . . . . . Parts Recycled . | . . . . . . . . . . . . . . . . . Recycled Matter . | . . . . . . . . . . . . . . . . . Retrieved Matter . | . . . . . . . . . . . . . . . . . Retrieved Components . | . . . . . . . . . . . . . . . . . Parts Scanalyzed 2 | . . . . . . . . 1 . . 1 . . . . . Part Schematics Acquired 2 | . . . . . . . . 1 . . 1 . . . . . Parts Damaged . | . . . . . . . . . . . . . . . . . Bothacking | -11 -10 -10 -9 -9 -9 -8 -8 -7 -6 -6 -5 -4 -3 -2 -2 -1 ------------ Run | Yrd Mat Min Mat Min Exi Min Mat Fac Fac DSF Fac Fac Res Res DSF Acc Used RIF Installer . | . . . . . . . . . . . . . . . . . Robots Hacked 7 | . . . . . . . 4 . . . . . 3 . . . Non-combat 6 | . . . . . . . 3 . . . . . 3 . . . Combat 1 | . . . . . . . 1 . . . . . . . . . Robot Hacks Applied 9 | . . . . . . . 6 . . . . . 3 . . . parse_system 4 | . . . . . . . 4 . . . . . . . . . no_distress 4 | . . . . . . . 1 . . . . . 3 . . . find_recycling 1 | . . . . . . . 1 . . . . . . . . . Relay Couplers Released . | . . . . . . . . . . . . . . . . . Fabnet Peak Effective % . | . . . . . . . . . . . . . . . . . Robots Rewired . | . . . . . . . . . . . . . . . . . Allies Hacked . | . . . . . . . . . . . . . . . . . Hacks Repelled . | . . . . . . . . . . . . . . . . . Allies | -11 -10 -10 -9 -9 -9 -8 -8 -7 -6 -6 -5 -4 -3 -2 -2 -1 -------- Run | Yrd Mat Min Mat Min Exi Min Mat Fac Fac DSF Fac Fac Res Res DSF Acc Total Allies 2 | . . 2 . . . . . . . . . . . . . . Largest Group 2 | . . 2 2 . . . . . . . . . . . . . Highest-Rated Group 48 | . . 48 48 . . . . . . . . . . . . . Highest-Rated Ally 31 | . . 31 31 . . . . . . . . . . . . . Total Orders 12 | . . . 7 5 . . . . . . . . . . . . EXPLORE 12 | . . . 7 5 . . . . . . . . . . . . Ally Attacks 24 | . . . 17 7 . . . . . . . . . . . . Total Damage 129 | . . . 129 . . . . . . . . . . . . . Kills 1 | . . . 1 . . . . . . . . . . . . . Allies Corrupted . | . . . . . . . . . . . . . . . . . Allies Melted . | . . . . . . . . . . . . . . . . . Intel | -11 -10 -10 -9 -9 -9 -8 -8 -7 -6 -6 -5 -4 -3 -2 -2 -1 ------- Run | Yrd Mat Min Mat Min Exi Min Mat Fac Fac DSF Fac Fac Res Res DSF Acc Robot Analysis Total 1 | . 1 . . . . . . . . . . . . . . . Derelict Logs Recovered 1 | . . 1 . . . . . . . . . . . . . . Drone Launches 16 | . . . 9 7 . . . . . . . . . . . . Drone Recoveries . | . . . . . . . . . . . . . . . . . Exploration | -11 -10 -10 -9 -9 -9 -8 -8 -7 -6 -6 -5 -4 -3 -2 -2 -1 ------------- Run | Yrd Mat Min Mat Min Exi Min Mat Fac Fac DSF Fac Fac Res Res DSF Acc Turns Passed 9001 | 67 436 264 524 677 573 735 877 2026 75 44 695 173 1350 7 22 456 Spaces Moved 7163 | 37 215 162 245 274 299 511 564 1393 66 36 428 117 1738 10 34 1034 Core 31 | 10 . . . . . 3 . . . . . . . . . 18 Treads 1288 | 27 215 162 245 110 . . . . . . 164 117 248 . . . Legs 1559 | . . . . 164 299 100 144 852 . . . . . . . . Wheels 1735 | . . . . . . 408 420 541 66 36 264 . . . . . Hover . | . . . . . . . . . . . . . . . . . Flight 2550 | . . . . . . . . . . . . . 1490 10 34 1016 Fastest Speed 23 | 50 160 160 160 160 120 80 80 90 105 105 93 145 23 25 25 25 Average Speed 92 | 149 160 160 160 177 189 100 93 111 105 105 112 145 51 25 26 26 Slowest Speed 228 | 160 160 160 160 190 190 190 120 190 105 105 145 145 228 28 28 92 Overloaded Moves . | . . . . . . . . . . . . . . . . . Propulsion Burnouts . | . . . . . . . . . . . . . . . . . Robots Hopped 10 | . . . . . . . . . . . . . 4 . . 6 Cave-ins Triggered 3 | . . . . . . 1 . 2 . . . . . . . . Exploration Rate (%) 33 | 5 35 49 36 76 61 61 33 32 2 35 6 3 37 . 43 28 Regions Visited 16 Branch Regions 4 Pre-discovered Areas 3 | . . 2 . . 1 . . . . . . . . . . . Known Exits Taken 4 | . 1 . . . . . 1 . 1 . . . . 1 . . Unknown Exits Taken 10 | 1 . 1 1 1 1 1 . 1 . . 1 1 1 . . . Scrap Searched 2 | . . . . 1 . 1 . . . . . . . . . . Spaces Dug 126 | . . . . 1 . 1 7 55 . . 4 . 43 . . 15 Terrain Destroyed 408 | . . . 6 1 . 1 13 167 . . 4 . 124 . 77 15 Melee 54 | . . . . 1 . 1 3 6 . . 4 . 24 . . 15 Projectile 11 | . . . . . . . 10 1 . . . . . . . . AOE 343 | . . . 6 . . . . 160 . . . . 100 . 77 . Terrain Rammed . | . . . . . . . . . . . . . . . . . Walls Destroyed . | . . . . . . . . . . . . . . . . . Machines Disabled . | . . . . . . . . . . . . . . . . . Actions | -11 -10 -10 -9 -9 -9 -8 -8 -7 -6 -6 -5 -4 -3 -2 -2 -1 --------- Run | Yrd Mat Min Mat Min Exi Min Mat Fac Fac DSF Fac Fac Res Res DSF Acc Total 9004 | 46 263 167 336 439 307 685 830 1756 70 40 599 120 2116 13 40 1177 Wait 1101 | . 18 4 55 141 . 119 155 195 . . 115 1 227 3 . 68 Move 7128 | 36 214 161 244 273 298 510 563 1392 65 35 427 116 1729 9 33 1023 Hop 9 | . . . . . . . . . . . . . 4 . . 5 Pick Up 151 | 4 4 1 5 3 3 8 33 42 3 4 8 1 25 . . 7 Fast Attach 49 | 6 2 . 2 . 1 3 3 1 . . 8 . 15 . . 8 Attach 65 | . . . 1 1 1 7 4 17 1 . 5 2 12 1 2 11 Detach 25 | . . . 1 . . 3 . 3 . . . . 8 . 1 9 Swap 42 | . 1 . 3 5 . 3 9 13 . . 4 . 4 . . . Drop 98 | . 2 1 4 3 4 1 5 23 . . 11 . 37 . . 7 Fire 142 | . 22 . 21 10 . 15 42 24 . . . . 6 . 2 . Melee 162 | . . . . 1 . 15 13 38 1 1 21 . 49 . 2 21 Ram 1 | . . . . . . 1 . . . . . . . . . . Kick 4 | . . . . 2 . . 2 . . . . . . . . . Crush . | . . . . . . . . . . . . . . . . . Escape Stasis 26 | . . . . . . . . 8 . . . . . . . 18 Rewire . | . . . . . . . . . . . . . . . . . Trap 1 | . . . . . . . 1 . . . . . . . . . Miscellaneous . | . . . . . . . . . . . . . . . . . Route ------- -11/Scrapyard -10/Materials -10/Mines -9/Materials -9/Mines (discovered 3 exits: *Mat x2 / *Exi) -9/Exiles -8/Mines -8/Materials (discovered 3 exits: *Fac x3) -7/Factory -6/Factory -6/DSF -5/Factory -4/Factory -3/Research (discovered 3 exits: *Res x2 / [*Tes]) -2/Research -2/DSF -1/Access (discovered 1 exit: Com) History --------- Turn | Location | Event 19 | -11/Scrapyard | Discovered new exit (range 16) 68 | -11/Scrapyard | Entered Materials 310 | -10/Materials | Build established: Mutant 329 | -10/Materials | Identified exit to Mines 504 | -10/Materials | Entered Mines 505 | -10/Mines | Learned location of Storage (-8) 710 | -10/Mines | Discovered new exit (range 15) 743 | -10/Mines | Learned location of Zion (-7) 746 | -10/Mines | Found the Drone Emporium 754 | -10/Mines | Found Prototype Device 768 | -10/Mines | Entered Materials 768 | -9/Materials | Accompanied by 2 allies 768 | -9/Materials | Evolved 2 slots: Utility x2 768 | -9/Materials | Identified Bomb Drone Bay 773 | -9/Materials | Led the pair of lost Derelicts to an unsafe place 1119 | -9/Materials | Lost 6 allies 1220 | -9/Materials | Discovered new exit (range 15) 1292 | -9/Materials | Entered Mines 1331 | -9/Mines | Discovered new exit (range 52) 1392 | -9/Mines | Assembled infested the area 1397 | -9/Mines | Assisted by a Guerilla fighting off Assembled 1443 | -9/Mines | Lost 3 allies 1733 | -9/Mines | Found a hidden stash of uninstalled traps 1882 | -9/Mines | Discovered new exit (range 6) 1961 | -9/Mines | Deemed a non-threat by the Exiles lab entrance 1961 | -9/Mines | Discovered new exit (range 5) 1969 | -9/Mines | Entered Exiles 2015 | -9/Exiles | Met 8R-AWN 2049 | -9/Exiles | Met EX-HEX 2112 | -9/Exiles | Met EX-BIN 2165 | -9/Exiles | Met EX-DEC 2224 | -9/Exiles | Aligned with FarCom system 2226 | -9/Exiles | Given EX-Vault access code 2273 | -9/Exiles | Opened EX-Vault 2289 | -9/Exiles | Found Lightpack 2.0 2353 | -9/Exiles | Warned to stay clear of 0b10 Research branches 2514 | -9/Exiles | Discovered new exit (range 14) 2542 | -9/Exiles | Left Exiles lab with Lightpack 2.0 2542 | -9/Exiles | Entered Mines 2595 | -8/Mines | Build established: Hauler-Mutant 2771 | -8/Mines | Crushed by falling debris 2812 | -8/Mines | Lost 6 parts (2p2n2w) 3266 | -8/Mines | Discovered new exit (range 15) 3277 | -8/Mines | Entered Materials 3277 | -8/Materials | Evolved 2 slots: Propulsion x1, Utility x1 3578 | -8/Materials | Build established: Hauler-Skirmisher 3607 | -8/Materials | Central database locked down 3610 | -8/Materials | Identified exit to Factory 3960 | -8/Materials | Build established: Hauler-Mutant 4154 | -8/Materials | Entered Factory 4154 | -7/Factory | Evolved 2 slots: Utility x1, Weapon x1 4465 | -7/Factory | Build established: Hauler-Tank 4799 | -7/Factory | Found Prototype Launcher 4814 | -7/Factory | Build established: Hauler-Skirmisher 4817 | -7/Factory | Identified Rocket Array 5338 | -7/Factory | Crushed by falling debris 5514 | -7/Factory | Build established: Hauler-Gladiator 5982 | -7/Factory | System corruption reached 10% 6007 | -7/Factory | Build established: Hauler-Mutant 6071 | -7/Factory | Destroyed 9 combat bots 6146 | -7/Factory | Crushed by falling debris 6146 | -7/Factory | Core integrity fell below 50% 6171 | -7/Factory | Discovered new exit (range 8) 6180 | -7/Factory | Entered another Factory area 6180 | -6/Factory | Evolved 2 slots: Utility x1, Weapon x1 6255 | -6/Factory | Identified exit to DSF 6255 | -6/Factory | Entered DSF 6272 | -6/DSF | Discovered new exit (range 15) 6290 | -6/DSF | Additional patrols routed to DSF 6299 | -6/DSF | Entered Factory 6299 | -5/Factory | Evolved 2 slots: Power x1, Propulsion x1 6406 | -5/Factory | Discovered new exit (range 5) 6994 | -5/Factory | Build established: Gladiator 6994 | -5/Factory | Entered another Factory area 6994 | -4/Factory | Evolved 2 slots: Utility x2 7146 | -4/Factory | Discovered new exit (range 15) 7167 | -4/Factory | Entered Research 7167 | -3/Research | Evolved 2 slots: Propulsion x1, Weapon x1 7856 | -3/Research | Discovered new exit (range 9) 7862 | -3/Research | Found Fusion Bomb Launcher 8093 | -3/Research | Spotted B-86 Titan 8125 | -3/Research | Build established: Infiltrator-Gladiator 8164 | -3/Research | Found Fusion Bomb Launcher 8389 | -3/Research | Discovered new exit (range 12) 8408 | -3/Research | Discovered new exit (range 8) 8517 | -3/Research | Entered another Research area 8517 | -2/Research | Evolved 2 slots: Propulsion x1, Utility x1 8520 | -2/Research | Identified exit to DSF 8524 | -2/Research | Entered DSF 8530 | -2/DSF | Discovered new exit (range 16) 8540 | -2/DSF | Additional patrols routed to DSF 8546 | -2/DSF | Entered Access 8546 | -1/Access | Evolved 2 slots: Power x1, Utility x1 8571 | -1/Access | Lost 7 parts (1n4u2w) 8576 | -1/Access | Found Prototype Processor 8578 | -1/Access | Identified Exp. Core Analyzer 8631 | -1/Access | Identified exit to Command 8963 | -1/Access | Energy Cycler disabled 8992 | -1/Access | Released all parts (10) 9002 | -1/Access | Self-destructed Last Messages --------------- 08975_ Imp. Weapon Shielding destroyed. 08975_ Chain reaction triggered in Lgt. Antimatter Reactor. 08975_ S-43 Plague destroyed. 08975_ Mic. Antimatter Reactor destroyed. 08977_ RPZT1 AD|/BQQWBCQ,MPL6 08977_ Acquired Xenon Bombardment Thruster. 08978_ Xenon Bombardment Thruster destroyed. 08990_ Connecting with Terminal... 08992_ Released Graphene Brace. 08992_ Released ECM Suite. 08992_ Released Exp. Core Analyzer. 08992_ Released Electron Diverter. 08992_ Released Hvy. Flail. 08992_ Released Adv. Melee Analysis Suite. 08992_ Released Impact Mace. 08992_ Released Adv. Melee Analysis Suite. 08992_ Released Graphene Brace. 08992_ Released Electron Diverter. 08998_ Anti-Orbital Battery disabled. 09001_ Terminal disabled. Map ----- +----------------------------------------------------+ | ????????????????????????????# # | | ????????????????????????????# # = | | ????????????????????????????######## # | | ???????????????????????????????????# # | | ???????????????????????????????????# # ! | | ???????????????????????????????????+ " | | ???????????????????????????????????# %" | | ???????????????????????????????????# %" | | ???????????????????????????????????# %%[ | | ???????????????????????????????????# [=" ] | | ???????????????????????????????????# " | | ???????????????????????????????????# ####### | | ???????????????????????????????????# #???### | | ???????????????????????????????????# #?? | | ????????????? ????????????????????# #?? | | ????????????? #################### #? "" | | ???????????? #? "" | | ????????????? # | | ???????????? # | | ???????????? + | | ??????????? # | | ??????????? # | | ??????????? #? | | ????????????????#########w##################? | | ???????????????????# sp #??????????????? | | ???????????????????# pp@ #???????????????#### | | ???????????????????# ! "#??????????????????? | | ???????????????????# "#??????????????????? | | ???????????????????# ""#??????????????????? | | ???????????????????# ""#??????????????????? | | ???????????????????#== ""#??????????????????? | | ???????????????????#/!/ T"#??????????????????? | | ???????????????????#!!"""" ""#??????????????????? | | ???????????????????# """" ""#??????????????????? | | ???????????????????# """" ""#??????????????????? | | ???????????????????# """" ""#??????????????????? | | ???????????????????# """" "#??????????????????? | | ???????????????????# "" #??????????????????? | | ???????????????????# "" #??????????????????? | | ???????????????????############??????????????????? | | ?????????????????????????????????????????????????? | | ?????????????????????????????????????????????????? | | ?????????????????????????????????????????????????? | | ?????????????????????????????????????????????????? | | ?????????????????????????????????????????????????? | | ?????????????????????????????????????????????????? | | ?????????????????????????????????????????????????? | | ?????????????????????????????????????????????????? | | ?????????????????????????????????????????????????? | | ?????????????????????????????????????????????????? | +----------------------------------------------------+ Best States ------------- Heat Dissipation 56 Energy Generation 39 Energy Capacity 400 Matter Stores 300 Matter Capacity 300 Sight Range 18 Terrain Scan Range 20 Terrain Scan Density 85 ECM Strength 1 Jamming Range 12 Armor Coverage 750 Resistance: TH 30 Power Shielding 66 Weapon Shielding 66 Melee Speed Boost 20 Evasion (%) 73 Melee Accuracy 22 Core Analysis 11 Recoil Reduction 5 Offensive Hacking 10 Item Schematics ----------------- Lyr. Light Armor Plating | -7/Factory | Scanalyzed Hvy. Flail | -5/Factory | Scanalyzed Robot Schematics ------------------ None Fabricated ------------ Nothing Alien Tech Used ----------------- None Achievements -------------- Dangerous Findings Deadly Force Denied? Dynamic Key I Survived The Infestation Leap Before You Look Maybe Next Time I'll Detach My Launcher No Signal Packrat Respectable Loadout Challenges ------------ None Game ------ Seed WardroneAlertBay Manual? 0 Play Time 02:48:18 Cumulative 13.3 hours Start 2024.04.22 @ 21:29:10 End 2024.04.23 @ 20:49:46 Sessions 5 Manual Loads 0 Difficulty Rogue Special Mode None Game No. 13 Rogue 13 Adventurer 0 Explorer 0 Win Type - Total 0 Types 0/0/0/0/0/0/0/0/0 Lore% 16 Gallery% 20 Achievement% 19 Wizard Run 0 Options --------- Layout 0 ASCII 0 Keyboard 0 Movement Numpad Keybinds 0 Fullscreen 1 Font 18/SmallcapsGlow Map View 76x50 Zoom Use 0% Tactical HUD 1 Map Filters NONE Filters NONE Steam 1 RUN: 9d02fc31-af45-4426-bbcd-3121e8bc5eec